[Event "23rd OIBM 2019"]
[Site "Gmund am Tegernsee"]
[Date "2019.10.26"]
[Round "1.5"]
[White "Ramaraju, N."]
[Black "Gareyev, Timur"]
[Result "0-1"]
[ECO "A21"]
[WhiteElo "2139"]
[BlackElo "2591"]
[Annotator "ChessBase"]
[PlyCount "44"]
[EventDate "2019.10.17"]
[EventType "swiss"]
[EventCountry "GER"]
[SourceTitle "playchess.com"]
[Source "ChessBase"]
[SourceQuality "1"]
[TimeControl "40/5400+30:1800+30"]

1. c4 {[%emt 0:02:56]} e5 {[%emt 0:03:40]} 2. Nc3 {[%emt 0:00:32]} Bb4 {[%emt 0:00:06]} 3. Nd5 {[%emt 0:02:47]} a5 {[%emt 0:00:02]} 4. a3 {[%emt 0:02:48]} Bc5 {[%emt 0:00:42]} 5. e3 {[%emt 0:00:36]} d6 {[%emt 0:00:34]} 6. d4 {[%emt 0:03:18]} Ba7 {[%emt 0:00:02]} 7. dxe5 {[%emt 0:01:05]} dxe5 {[%emt 0:00:03]} 8. Nf3 {[%emt 0:00:27]} e4 {[%emt 0:01:23]} 9. Nd2 {[%emt 0:03:43]} Bf5 {[%emt 0:02:55]} 10. Qc2 {[%emt 0:03:32]} Nf6 {[%emt 0:05:01]} 11. Nc3 {[%emt 0:06:02]} O-O {[%emt 0:02:47]} 12. Be2 {[%emt 0:00:21]} Nbd7 {[%emt 0:00:57]} 13. O-O {[%emt 0:01:42]} Ne5 {[%emt 0:01:16]} 14. Rd1 {[%emt 0:02:29]} Qe7 {[%emt 0:00:34]} 15. Ndxe4 {[%emt 0:14:03]} Nxe4 {[%emt 0:00:35]} 16. Nxe4 {[%emt 0:00:03]} Rad8 {[%emt 0:01:14]} 17. Re1 {[%emt 0:06:14]} Qh4 {[%emt 0:00:33]} 18. Bf3 {[%emt 0:01:21]} Rfe8 {[%emt 0:00:03]} 19. Qe2 {[%emt 0:21:47]} Bxe4 {[%emt 0:00:45]} 20. Bxe4 {[%emt 0:00:23]} Qxe4 {[%emt 0:00:02]} 21. b3 {[%emt 0:00:42]} Nd3 {[%emt 0:00:02]} 22. Rd1 {[%emt 0:00:10]} Nf4 {[%emt 0:00:02]} 0-1

[Event "23rd OIBM 2019"]
[Site "Gmund am Tegernsee"]
[Date "2019.10.26"]
[Round "1.6"]
[White "Azarov, Sergei"]
[Black "Huenerfauth, Uwe"]
[Result "1-0"]
[ECO "C60"]
[WhiteElo "2586"]
[BlackElo "2138"]
[Annotator "ChessBase"]
[PlyCount "53"]
[EventDate "2019.10.17"]
[EventType "swiss"]
[EventCountry "GER"]
[SourceTitle "playchess.com"]
[Source "ChessBase"]
[SourceQuality "1"]
[TimeControl "40/5400+30:1800+30"]

1. e4 {[%emt 0:00:00]} e5 {[%emt 0:00:00]} 2. Nf3 {[%emt 0:00:00]} Nc6 {[%emt 0:00:00]} 3. Bb5 {[%emt 0:00:00]} Nge7 {[%emt 0:00:03]} 4. c3 {[%emt 0:01:31]} g6 {[%emt 0:00:19]} 5. d4 {[%emt 0:00:23]} exd4 {[%emt 0:00:29]} 6. cxd4 {[%emt 0:00:25]} d5 {[%emt 0:00:14]} 7. Bxc6+ {[%emt 0:08:20]} bxc6 {[%emt 0:02:34]} 8. e5 {[%emt 0:00:10]} Bg7 {[%emt 0:04:32]} 9. O-O {[%emt 0:01:12]} O-O {[%emt 0:05:11]} 10. h3 {[%emt 0:01:28]} Rb8 {[%emt 0:10:21]} 11. b3 {[%emt 0:04:29]} f6 {[%emt 0:18:56]} 12. Nc3 {[%emt 0:03:06]} fxe5 {[%emt 0:09:29]} 13. Nxe5 {[%emt 0:01:59]} Qd6 {[%emt 0:03:44]} 14. Na4 {[%emt 0:04:30]} Rb4 {[%emt 0:16:23]} 15. Ba3 {[%emt 0:07:41]} Rxd4 {[%emt 0:02:11]} 16. Qxd4 {[%emt 0:16:22]} Qxa3 {[%emt 0:02:36]} 17. f4 {[%emt 0:00:14]} Nf5 {[%emt 0:03:28]} 18. Qd3 {[%emt 0:03:13]} Qd6 {[%emt 0:01:27]} 19. Rac1 {[%emt 0:00:22]} Ne7 {[%emt 0:01:08]} 20. Qc2 {[%emt 0:01:39]} Bf5 {[%emt 0:04:15]} 21. Qc5 {[%emt 0:01:13]} Bxe5 {[%emt 0:02:18]} 22. fxe5 {[%emt 0:02:48]} Qxe5 {[%emt 0:00:10]} 23. Rce1 {[%emt 0:01:41]} Be4 {[%emt 0:00:19]} 24. Rxf8+ {[%emt 0:00:58]} Kxf8 {[%emt 0:00:02]} 25. Nc3 {[%emt 0:01:04]} Qg3 {[%emt 0:02:25]} 26. Re2 {[%emt 0:00:27]} Qd3 {[%emt 0:04:06]} 27. Re3 {[%emt 0:01:36]} 1-0

[Event "23rd OIBM 2019"]
[Site "Gmund am Tegernsee"]
[Date "2019.10.26"]
[Round "1.7"]
[White "Babar, Michael"]
[Black "Santos Latasa, Jaime"]
[Result "0-1"]
[ECO "B30"]
[WhiteElo "2137"]
[BlackElo "2580"]
[Annotator "ChessBase"]
[PlyCount "66"]
[EventDate "2019.10.17"]
[EventType "swiss"]
[EventCountry "GER"]
[SourceTitle "playchess.com"]
[Source "ChessBase"]
[SourceQuality "1"]
[TimeControl "40/5400+30:1800+30"]

1. e4 {[%emt 0:00:00]} c5 {[%emt 0:00:00]} 2. Nf3 {[%emt 0:00:17]} Nc6 {[%emt 0:00:00]} 3. Bb5 {[%emt 0:00:56]} Nf6 {[%emt 0:00:48]} 4. Bxc6 {[%emt 0:01:31]} dxc6 {[%emt 0:00:10]} 5. Qe2 {[%emt 0:00:22]} g6 {[%emt 0:01:15]} 6. O-O {[%emt 0:00:40]} Bg7 {[%emt 0:00:05]} 7. d3 {[%emt 0:02:00]} Nd7 {[%emt 0:00:48]} 8. Nbd2 {[%emt 0:01:12]} e5 {[%emt 0:03:10]} 9. Nc4 {[%emt 0:07:21]} Qe7 {[%emt 0:03:26]} 10. a4 {[%emt 0:00:21]} Nf8 {[%emt 0:04:17]} 11. c3 {[%emt 0:12:17]} Bg4 {[%emt 0:03:28]} 12. h3 {[%emt 0:04:26]} Bxf3 {[%emt 0:00:06]} 13. Qxf3 {[%emt 0:00:02]} Ne6 {[%emt 0:00:09]} 14. Be3 {[%emt 0:15:52]} O-O {[%emt 0:00:45]} 15. Qg3 {[%emt 0:04:02]} Qc7 {[%emt 0:01:34]} 16. f4 {[%emt 0:04:43]} exf4 {[%emt 0:00:12]} 17. Bxf4 {[%emt 0:00:02]} Nxf4 {[%emt 0:00:10]} 18. Qxf4 {[%emt 0:00:06]} Qxf4 {[%emt 0:00:20]} 19. Rxf4 {[%emt 0:00:02]} Rad8 {[%emt 0:00:29]} 20. Rf3 {[%emt 0:00:27]} Rd7 {[%emt 0:00:27]} 21. Kf2 {[%emt 0:00:45]} b6 {[%emt 0:00:41]} 22. g4 {[%emt 0:02:18]} Re8 {[%emt 0:00:36]} 23. Ke2 {[%emt 0:03:28]} Re6 {[%emt 0:03:07]} 24. Ne3 {[%emt 0:19:32]} Bf6 {[%emt 0:01:45]} 25. Nc4 {[%emt 0:01:01]} Bg5 {[%emt 0:00:43]} 26. Ne3 {[%emt 0:01:27]} Kg7 {[%emt 0:00:35]} 27. Nc4 {[%emt 0:00:10]} b5 {[%emt 0:00:34]} 28. axb5 {[%emt 0:01:58]} cxb5 {[%emt 0:00:33]} 29. Ne3 {[%emt 0:02:42]} c4 {[%emt 0:00:50]} 30. Rd1 {[%emt 0:00:50]} cxd3+ {[%emt 0:00:40]} 31. Rxd3 {[%emt 0:00:13]} Rde7 {[%emt 0:00:05]} 32. Rd5 {[%emt 0:00:57]} h6 {[%emt 0:00:14]} 33. Kd3 {[%emt 0:10:10]} Rxe4 {[%emt 0:00:32] Kd4} 0-1

[Event "23rd OIBM 2019"]
[Site "Gmund am Tegernsee"]
[Date "2019.10.26"]
[Round "1.8"]
[White "Peralta, Fernando"]
[Black "Viebahn, Dirk"]
[Result "1-0"]
[ECO "D86"]
[WhiteElo "2569"]
[BlackElo "2137"]
[Annotator "RC"]
[PlyCount "61"]
[EventDate "2019.10.17"]
[EventType "swiss"]
[EventCountry "GER"]
[SourceTitle "playchess.com"]
[Source "ChessBase"]
[SourceQuality "1"]
[TimeControl "40/5400+30:1800+30"]

1. d4 {[%emt 0:00:00]} Nf6 {[%emt 0:00:00]} 2. c4 {[%emt 0:00:00]} g6 {[%emt 0:00:00]} 3. Nc3 {[%emt 0:00:00]} d5 {[%emt 0:00:09]} 4. cxd5 {[%emt 0:00:16]} Nxd5 {[%emt 0:00:10]} 5. e4 {[%emt 0:00:04]} Nxc3 {[%emt 0:00:13]} 6. bxc3 {[%emt 0:00:05]} Bg7 {[%emt 0:00:13]} 7. Bc4 {[%emt 0:00:13]} c5 {[%emt 0:00:26]} 8. Ne2 {[%emt 0:00:05]} Nc6 {[%emt 0:01:51]} 9. Be3 {[%emt 0:00:11]} O-O {[%emt 0:00:35]} 10. O-O {[%emt 0:00:06]} Bg4 {[%emt 0:03:41]} 11. f3 {[%emt 0:00:12]} Bd7 {[%emt 0:00:41]} 12. Rb1 {[%emt 0:00:18]} Na5 {[%emt 0:05:45]} 13. Bd3 {[%emt 0:00:14]} cxd4 {[%emt 0:01:35]} 14. cxd4 {[%emt 0:00:07]} a6 {[%emt 0:03:15]} 15. d5 {[%emt 0:04:24]} b5 {[%emt 0:00:54]} 16. Qd2 {[%emt 0:00:24]} Rc8 {[%emt 0:06:16]} 17. Rfc1 {[%emt 0:01:56]} f5 {[%emt 0:06:27]} 18. Rxc8 {[%emt 0:14:11]} Bxc8 {[%emt 0:00:13]} 19. a4 {[%emt 0:01:02]} fxe4 {[%emt 0:02:53]} 20. fxe4 {[%emt 0:00:07]} Bd7 {[%emt 0:09:43]} 21. axb5 {[%emt 0:05:17]} axb5 {[%emt 0:01:23]} 22. Qa2 {[%emt 0:12:46]} Nb7 {[%emt 0:14:11]} 23. Nd4 {[%emt 0:07:51]} Nd6 {[%emt 0:10:16]} 24. Nc6 {[%emt 0:00:53]} Bxc6 {[%emt 0:08:26]} 25. dxc6+ {[%emt 0:00:09]} Kh8 {[%emt 0:00:13]} 26. Qd5 {[%emt 0:13:20]} Qa5 {[%emt 0:12:47]} 27. e5 {[%emt 0:05:46]} Nf5 {[%emt 0:06:58]} 28. Bxf5 {[%emt 0:18:32]} Rxf5 {[%emt 0:01:49]} 29. Qxb5 {[%emt 0:04:47]} Qc3 {[%emt 0:02:24]} 30. Qc5 {[%emt 0:00:32]} Qxc5 {[%emt 0:00:58]} 31. Rb8+ {[%emt 0:00:15]} 1-0

[Event "23rd OIBM 2019"]
[Site "Gmund am Tegernsee"]
[Date "2019.10.26"]
[Round "1.9"]
[White "Tillmann, Markus"]
[Black "Idani, Pouya"]
[Result "0-1"]
[ECO "A04"]
[WhiteElo "2136"]
[BlackElo "2568"]
[Annotator "ChessBase"]
[PlyCount "56"]
[EventDate "2019.10.17"]
[EventType "swiss"]
[EventCountry "GER"]
[SourceTitle "playchess.com"]
[Source "ChessBase"]
[SourceQuality "1"]
[TimeControl "40/5400+30:1800+30"]

1. Nf3 {[%emt 0:03:39]} c5 {[%emt 0:00:00]} 2. g3 {[%emt 0:01:04]} g6 {[%emt 0:00:00]} 3. Bg2 {[%emt 0:00:08]} Bg7 {[%emt 0:00:01]} 4. Nc3 {[%emt 0:00:32]} Nc6 {[%emt 0:00:11]} 5. O-O {[%emt 0:01:01]} d6 {[%emt 0:03:11]} 6. e4 {[%emt 0:03:10]} e5 {[%emt 0:00:23]} 7. Nd5 {[%emt 0:01:19]} Nge7 {[%emt 0:00:23]} 8. Nxe7 {[%emt 0:03:57]} Qxe7 {[%emt 0:00:42]} 9. d3 {[%emt 0:00:47]} O-O {[%emt 0:00:16]} 10. c3 {[%emt 0:02:42]} f5 {[%emt 0:00:28]} 11. exf5 {[%emt 0:02:06]} gxf5 {[%emt 0:03:58]} 12. Ng5 {[%emt 0:04:23]} Qe8 {[%emt 0:07:58]} 13. Bd5+ {[%emt 0:04:24]} Kh8 {[%emt 0:00:05]} 14. f4 {[%emt 0:00:36]} h6 {[%emt 0:01:20]} 15. Nf3 {[%emt 0:02:58]} Ne7 {[%emt 0:02:46]} 16. Qb3 {[%emt 0:06:29]} Bd7 {[%emt 0:07:42]} 17. a4 {[%emt 0:06:36]} Nxd5 {[%emt 0:11:04]} 18. Qxd5 {[%emt 0:00:06]} e4 {[%emt 0:05:54]} 19. Nh4 {[%emt 0:06:05]} Bc6 {[%emt 0:09:21]} 20. Qxd6 {[%emt 0:10:38]} Bf6 {[%emt 0:03:56]} 21. Ng2 {[%emt 0:03:26]} Rd8 {[%emt 0:00:33]} 22. Qxc5 {[%emt 0:00:34]} exd3 {[%emt 0:00:07]} 23. Qe3 {[%emt 0:07:23]} Qd7 {[%emt 0:00:52]} 24. Bd2 {[%emt 0:05:18]} Rfe8 {[%emt 0:00:29]} 25. Qxa7 {[%emt 0:00:15]} Qd5 {[%emt 0:00:18]} 26. Rf2 {[%emt 0:01:16]} Re2 {[%emt 0:00:05]} 27. Qb6 {[%emt 0:17:23]} Rde8 {[%emt 0:01:32]} 28. Rd1 {[%emt 0:01:23]} Rxf2 {[%emt 0:00:32]} 0-1

[Event "23rd OIBM 2019"]
[Site "Gmund am Tegernsee"]
[Date "2019.10.26"]
[Round "1.10"]
[White "Bernadskiy, Vitaliy"]
[Black "Gschwendtner, Klaus"]
[Result "1-0"]
[ECO "C71"]
[WhiteElo "2554"]
[BlackElo "2133"]
[Annotator "ChessBase"]
[PlyCount "93"]
[EventDate "2019.10.17"]
[EventType "swiss"]
[EventCountry "GER"]
[SourceTitle "playchess.com"]
[Source "ChessBase"]
[SourceQuality "1"]
[TimeControl "40/5400+30:1800+30"]

1. e4 {[%emt 0:06:13]} e5 {[%emt 0:00:00]} 2. Nf3 {[%emt 0:00:07]} Nc6 {[%emt 0:00:05]} 3. Bb5 {[%emt 0:00:31]} a6 {[%emt 0:00:28]} 4. Ba4 {[%emt 0:00:10]} d6 {[%emt 0:00:21]} 5. d4 {[%emt 0:01:15]} b5 {[%emt 0:01:12]} 6. Bb3 {[%emt 0:00:08]} Nxd4 {[%emt 0:02:11]} 7. Nxd4 {[%emt 0:00:45]} exd4 {[%emt 0:00:02]} 8. c3 {[%emt 0:01:02]} dxc3 {[%emt 0:04:48]} 9. Nxc3 {[%emt 0:07:18]} Nf6 {[%emt 0:01:06]} 10. e5 {[%emt 0:05:35]} dxe5 {[%emt 0:03:50]} 11. Bxf7+ {[%emt 0:02:29]} Ke7 {[%emt 0:00:31]} 12. Qxd8+ {[%emt 0:00:13]} Kxd8 {[%emt 0:00:02]} 13. Bg5 {[%emt 0:00:06]} Bb7 {[%emt 0:04:27]} 14. O-O-O+ {[%emt 0:01:07]} Bd6 {[%emt 0:03:09]} 15. Rhe1 {[%emt 0:05:46]} Rf8 {[%emt 0:09:03]} 16. Bb3 {[%emt 0:01:15]} Bxg2 {[%emt 0:08:06]} 17. f4 {[%emt 0:01:37]} exf4 {[%emt 0:05:30]} 18. Bxf4 {[%emt 0:00:04]} Ne8 {[%emt 0:01:11]} 19. Bg5+ {[%emt 0:04:05]} Nf6 {[%emt 0:02:44]} 20. Rg1 {[%emt 0:01:28]} Bc6 {[%emt 0:04:34]} 21. Bh4 {[%emt 0:04:00]} Kc8 {[%emt 0:05:18]} 22. Rxg7 {[%emt 0:00:22]} Bxh2 {[%emt 0:02:26]} 23. Bf7 {[%emt 0:01:25]} Bf4+ {[%emt 0:05:54]} 24. Kc2 {[%emt 0:00:56]} Ne4 {[%emt 0:01:47]} 25. Nd5 {[%emt 0:04:19]} Bd6 {[%emt 0:09:23]} 26. Be7 {[%emt 0:02:21]} Rh8 {[%emt 0:04:59]} 27. Re1 {[%emt 0:02:36]} Nc5 {[%emt 0:10:45]} 28. Bxd6 {[%emt 0:00:32]} cxd6 {[%emt 0:00:07]} 29. Nb6+ {[%emt 0:02:58]} Kb8 {[%emt 0:00:37]} 30. Re7 {[%emt 0:00:34]} Ra7 {[%emt 0:01:08]} 31. Rxa7 {[%emt 0:00:31]} Kxa7 {[%emt 0:00:01]} 32. Nd5 {[%emt 0:00:04]} Rb8 {[%emt 0:03:59]} 33. Ne7 {[%emt 0:02:09]} Be4+ {[%emt 0:00:22]} 34. Kc3 {[%emt 0:00:01]} Rb7 {[%emt 0:00:11]} 35. Nc8+ {[%emt 0:00:06]} Kb8 {[%emt 0:00:47]} 36. Nxd6 {[%emt 0:00:05]} Rd7 {[%emt 0:01:44]} 37. b4 {[%emt 0:05:32]} Na4+ {[%emt 0:01:10]} 38. Kd4 {[%emt 0:00:06]} Rxd6+ {[%emt 0:00:16]} 39. Kxe4 {[%emt 0:00:07]} Rh6 {[%emt 0:01:07]} 40. Ke5 {[%emt 0:02:36]} Nb6 {[%emt 0:01:02]} 41. Kd4 {[%emt 0:30:36]} Rh4+ {[%emt 0:32:59]} 42. Kc5 {[%emt 0:00:11]} Nd7+ {[%emt 0:00:00]} 43. Kd6 {[%emt 0:00:00]} Rd4+ {[%emt 0:00:00]} 44. Ke7 {[%emt 0:00:00]} Kc7 {[%emt 0:00:00]} 45. Be6 {[%emt 0:00:00]} Re4 {[%emt 0:00:00]} 46. Rxh7 {[%emt 0:00:00]} Rxe6+ {[%emt 0:00:00]} 47. Kxe6 {[%emt 0:00:00]} 1-0

[Event "23rd OIBM 2019"]
[Site "Gmund am Tegernsee"]
[Date "2019.10.26"]
[Round "1.12"]
[White "Shevchenko, Kirill"]
[Black "Smits, Mark"]
[Result "1-0"]
[ECO "C60"]
[WhiteElo "2542"]
[BlackElo "2132"]
[Annotator "RC"]
[PlyCount "99"]
[EventDate "2019.10.17"]
[EventType "swiss"]
[EventCountry "GER"]
[SourceTitle "playchess.com"]
[Source "ChessBase"]
[SourceQuality "1"]
[TimeControl "40/5400+30:1800+30"]

1. e4 {[%emt 0:00:00]} e5 {[%emt 0:00:00]} 2. Nf3 {[%emt 0:00:37]} Nc6 {[%emt 0:00:00]} 3. Bb5 {[%emt 0:00:27]} Nge7 {[%emt 0:00:14]} 4. c3 {[%emt 0:05:41]} d6 {[%emt 0:00:38]} 5. d4 {[%emt 0:01:00]} Bd7 {[%emt 0:00:06]} 6. O-O {[%emt 0:02:01]} Ng6 {[%emt 0:00:13]} 7. Be3 {[%emt 0:03:21]} Be7 {[%emt 0:00:14]} 8. Nbd2 {[%emt 0:02:08]} O-O {[%emt 0:00:13]} 9. Ba4 {[%emt 0:03:56]} Qe8 {[%emt 0:03:32]} 10. Kh1 {[%emt 0:06:29]} Nd8 {[%emt 0:05:48]} 11. Bxd7 {[%emt 0:07:00]} Qxd7 {[%emt 0:00:06]} 12. Qb3 {[%emt 0:00:04]} exd4 {[%emt 0:08:14]} 13. cxd4 {[%emt 0:04:53]} Kh8 {[%emt 0:05:01]} 14. d5 {[%emt 0:04:01]} c5 {[%emt 0:04:25]} 15. dxc6 {[%emt 0:02:43]} bxc6 {[%emt 0:00:17]} 16. Rac1 {[%emt 0:06:11]} f5 {[%emt 0:03:26]} 17. exf5 {[%emt 0:04:00]} Rxf5 {[%emt 0:01:07]} 18. Nd4 {[%emt 0:07:01]} Rf8 {[%emt 0:08:30]} 19. Rfd1 {[%emt 0:07:28]} d5 {[%emt 0:13:37]} 20. Ne2 {[%emt 0:06:05]} Bd6 {[%emt 0:06:34]} 21. Qc2 {[%emt 0:05:35]} Qg4 {[%emt 0:07:17]} 22. Ng3 {[%emt 0:05:00]} c5 {[%emt 0:14:17]} 23. Bxc5 {[%emt 0:05:15]} Rc8 {[%emt 0:00:16]} 24. b4 {[%emt 0:06:50]} Rxf2 {[%emt 0:01:31]} 25. Qb3 {[%emt 0:01:26]} Bxc5 {[%emt 0:02:59]} 26. bxc5 {[%emt 0:00:15]} Nf4 {[%emt 0:00:31]} 27. Qe3 {[%emt 0:00:55]} Re2 {[%emt 0:01:28]} 28. Qf3 {[%emt 0:01:31]} Qxf3 {[%emt 0:02:00]} 29. Nxf3 {[%emt 0:00:02]} Rxa2 {[%emt 0:01:29]} 30. Nd4 {[%emt 0:00:12]} Nc6 {[%emt 0:02:04]} 31. Nxc6 {[%emt 0:01:03]} Rxc6 {[%emt 0:00:04]} 32. Nf5 {[%emt 0:00:22]} g6 {[%emt 0:03:43]} 33. Ne7 {[%emt 0:02:02]} Re6 {[%emt 0:05:57]} 34. c6 {[%emt 0:00:39]} Rxe7 {[%emt 0:00:15]} 35. c7 Re8 {[%emt 0:00:49]} 36. c8=Q {[%emt 0:00:44]} Rxc8 {[%emt 0:00:05]} 37. Rxc8+ {[%emt 0:00:01]} Kg7 {[%emt 0:00:07]} 38. g3 {[%emt 0:00:53]} Nh3 {[%emt 0:01:06]} 39. Rxd5 {[%emt 0:00:46]} h5 {[%emt 0:00:41]} 40. Rd7+ {[%emt 0:00:46]} Kh6 {[%emt 0:00:31]} 41. Rg8 {[%emt 0:12:18]} Nf2+ {[%emt 0:04:51]} 42. Kg1 {[%emt 0:00:18]} Nh3+ {[%emt 0:08:51]} 43. Kf1 {[%emt 0:00:11]} Rf2+ {[%emt 0:01:04]} 44. Ke1 {[%emt 0:00:04]} Rxh2 {[%emt 0:00:20]} 45. Rd6 {[%emt 0:01:49]} Ng1 {[%emt 0:02:14]} 46. Rgxg6+ {[%emt 0:03:07]} Kh7 {[%emt 0:00:07]} 47. Rge6 {[%emt 0:00:21]} Nf3+ {[%emt 0:01:56]} 48. Kd1 {[%emt 0:00:04]} Kg7 {[%emt 0:00:59]} 49. Re7+ {[%emt 0:00:32]} Kf8 {[%emt 0:00:07]} 50. Rxa7 {[%emt 0:00:18]} 1-0

[Event "23rd OIBM 2019"]
[Site "Gmund am Tegernsee"]
[Date "2019.10.26"]
[Round "1.13"]
[White "Kaiser, Elmar"]
[Black "Nasuta, Grzegorz"]
[Result "1-0"]
[ECO "C95"]
[WhiteElo "2131"]
[BlackElo "2534"]
[Annotator "ChessBase"]
[PlyCount "56"]
[EventDate "2019.10.17"]
[EventType "swiss"]
[EventCountry "GER"]
[SourceTitle "playchess.com"]
[Source "ChessBase"]
[SourceQuality "1"]
[TimeControl "40/5400+30:1800+30"]

1. e4 {[%emt 0:02:52]} e5 {[%emt 0:00:35]} 2. Nf3 {[%emt 0:00:14]} Nc6 {[%emt 0:00:05]} 3. Bb5 {[%emt 0:00:19]} a6 {[%emt 0:00:08]} 4. Ba4 {[%emt 0:00:15]} Nf6 {[%emt 0:00:10]} 5. O-O {[%emt 0:00:11]} Be7 {[%emt 0:01:37]} 6. Re1 {[%emt 0:00:39]} b5 {[%emt 0:00:17]} 7. Bb3 {[%emt 0:00:04]} d6 {[%emt 0:00:07]} 8. c3 {[%emt 0:00:28]} O-O {[%emt 0:00:12]} 9. h3 {[%emt 0:00:56]} Nb8 {[%emt 0:04:12]} 10. d4 {[%emt 0:01:00]} Nbd7 {[%emt 0:00:05]} 11. Nbd2 {[%emt 0:01:27]} Bb7 {[%emt 0:00:08]} 12. Bc2 {[%emt 0:00:11]} c5 {[%emt 0:00:13]} 13. d5 {[%emt 0:00:37]} c4 {[%emt 0:00:06]} 14. Nf1 {[%emt 0:00:29]} Qc7 {[%emt 0:00:06]} 15. Ng3 {[%emt 0:00:56]} g6 {[%emt 0:00:06]} 16. Bh6 {[%emt 0:04:11]} Rfb8 {[%emt 0:00:06]} 17. Qd2 {[%emt 0:00:15]} a5 {[%emt 0:01:07]} 18. Nh2 {[%emt 0:12:11]} b4 {[%emt 0:05:35]} 19. Nf5 {[%emt 0:12:22]} Bd8 {[%emt 0:13:57]} 20. Ba4 {[%emt 0:23:36]} Nc5 {[%emt 0:49:50]} 21. Bf8 {[%emt 0:01:14]} Ne8 {[%emt 0:00:22]} 22. Qh6 {[%emt 0:04:32]} Nxa4 {[%emt 0:00:40]} 23. Bxd6 {[%emt 0:00:17]} Qxd6 {[%emt 0:00:05]} 24. Nxd6 {[%emt 0:00:08]} Nxd6 {[%emt 0:00:04]} 25. cxb4 {[%emt 0:13:23]} Nxb2 {[%emt 0:03:52]} 26. bxa5 {[%emt 0:01:51]} Nd3 {[%emt 0:00:55]} 27. Re2 {[%emt 0:01:36]} Nf4 {[%emt 0:00:53]} 28. Ree1 {[%emt 0:01:55]} f5 {[%emt 0:00:23]} 1-0

[Event "23rd OIBM 2019"]
[Site "Gmund am Tegernsee"]
[Date "2019.10.26"]
[Round "1.14"]
[White "Chanda, Sandipan"]
[Black "Kastek, Thomas"]
[Result "1-0"]
[ECO "E46"]
[WhiteElo "2529"]
[BlackElo "2129"]
[Annotator "ChessBase"]
[PlyCount "41"]
[EventDate "2019.10.17"]
[EventType "swiss"]
[EventCountry "GER"]
[SourceTitle "playchess.com"]
[Source "ChessBase"]
[SourceQuality "1"]
[TimeControl "40/5400+30:1800+30"]

1. d4 {[%emt 0:00:00]} Nf6 {[%emt 0:00:00]} 2. c4 {[%emt 0:00:00]} e6 {[%emt 0:00:00]} 3. Nc3 {[%emt 0:00:00]} Bb4 {[%emt 0:00:07]} 4. e3 {[%emt 0:00:12]} O-O {[%emt 0:01:00]} 5. Bd2 {[%emt 0:00:11]} d5 {[%emt 0:01:56]} 6. Nf3 {[%emt 0:00:15]} b6 {[%emt 0:02:14]} 7. cxd5 {[%emt 0:00:25]} exd5 {[%emt 0:00:28]} 8. Rc1 {[%emt 0:00:13]} Be7 {[%emt 0:02:58]} 9. Ne5 {[%emt 0:00:33]} Bb7 {[%emt 0:01:19]} 10. Bd3 {[%emt 0:00:49]} c5 {[%emt 0:06:27]} 11. O-O {[%emt 0:00:17]} Nbd7 {[%emt 0:02:14]} 12. f4 {[%emt 0:00:44]} Rc8 {[%emt 0:01:27]} 13. Qf3 {[%emt 0:02:24]} cxd4 {[%emt 0:08:16]} 14. exd4 {[%emt 0:00:17]} Ne4 {[%emt 0:02:28]} 15. Qh3 {[%emt 0:08:23]} Ndf6 {[%emt 0:04:26]} 16. Be3 {[%emt 0:09:43]} Qd6 {[%emt 0:14:40]} 17. Nb5 {[%emt 0:15:51]} Qb8 {[%emt 0:28:59]} 18. g4 {[%emt 0:01:23]} Rxc1 {[%emt 0:07:40]} 19. Bxc1 {[%emt 0:00:49]} Rd8 {[%emt 0:01:57]} 20. g5 {[%emt 0:02:31]} Ne8 {[%emt 0:00:12]} 21. Qf5 {[%emt 0:01:18]} 1-0

[Event "23rd OIBM 2019"]
[Site "Gmund am Tegernsee"]
[Date "2019.10.26"]
[Round "1.15"]
[White "Lodes, Hermann"]
[Black "Marin, Mihail"]
[Result "0-1"]
[ECO "A10"]
[WhiteElo "2129"]
[BlackElo "2524"]
[Annotator "RC"]
[PlyCount "86"]
[EventDate "2019.10.17"]
[EventType "swiss"]
[EventCountry "GER"]
[SourceTitle "playchess.com"]
[Source "ChessBase"]
[SourceQuality "1"]
[TimeControl "40/5400+30:1800+30"]

1. c4 {[%emt 0:02:46]} f5 {[%emt 0:00:00]} 2. g3 {[%emt 0:01:06]} Nf6 {[%emt 0:00:04]} 3. Bg2 {[%emt 0:00:29]} g6 {[%emt 0:00:07]} 4. Nc3 {[%emt 0:00:24]} Bg7 {[%emt 0:00:07]} 5. d4 {[%emt 0:00:25]} O-O {[%emt 0:00:22]} 6. Nh3 {[%emt 0:01:10]} e6 {[%emt 0:00:21]} 7. d5 {[%emt 0:05:14]} e5 {[%emt 0:02:45]} 8. d6 {[%emt 0:02:44]} cxd6 {[%emt 0:00:41]} 9. Qxd6 {[%emt 0:00:19]} Nc6 {[%emt 0:01:01]} 10. O-O {[%emt 0:04:41]} h6 {[%emt 0:01:29]} 11. Rd1 {[%emt 0:08:21]} Kh7 {[%emt 0:04:52]} 12. Rb1 {[%emt 0:10:26]} Ne8 {[%emt 0:05:16]} 13. Qd2 {[%emt 0:01:25]} d6 {[%emt 0:02:11]} 14. c5 {[%emt 0:11:03]} Be6 {[%emt 0:01:30]} 15. cxd6 {[%emt 0:02:23]} Rf7 {[%emt 0:00:49]} 16. b3 {[%emt 0:02:51]} Rd7 {[%emt 0:02:01]} 17. Ba3 {[%emt 0:01:16]} Bf8 {[%emt 0:02:51]} 18. Qe3 {[%emt 0:03:43]} Qf6 {[%emt 0:18:24]} 19. Na4 {[%emt 0:02:35]} Bxd6 {[%emt 0:06:36]} 20. Nc5 {[%emt 0:05:42]} Re7 {[%emt 0:07:13]} 21. Bb2 {[%emt 0:06:43]} Rc8 {[%emt 0:09:00]} 22. Nxe6 {[%emt 0:08:42]} Rxe6 {[%emt 0:07:11]} 23. Bxc6 {[%emt 0:05:48]} Rxc6 {[%emt 0:02:52]} 24. Qxa7 {[%emt 0:00:38]} Qe7 {[%emt 0:01:21]} 25. Rbc1 {[%emt 0:01:41]} Ra6 {[%emt 0:03:32]} 26. Qe3 {[%emt 0:00:28]} g5 {[%emt 0:05:24]} 27. Kg2 {[%emt 0:00:31]} g4 {[%emt 0:02:03]} 28. Ng1 {[%emt 0:00:07]} Rxa2 {[%emt 0:00:09]} 29. Rc2 {[%emt 0:01:02]} Kg6 {[%emt 0:04:42]} 30. Rdc1 {[%emt 0:01:35]} Nf6 {[%emt 0:00:42]} 31. Rd1 {[%emt 0:02:33]} b6 {[%emt 0:04:48]} 32. f3 {[%emt 0:01:31]} Bc5 {[%emt 0:01:35]} 33. Qd2 {[%emt 0:00:50]} Rd6 {[%emt 0:00:56]} 34. Qc1 {[%emt 0:01:15]} Nd5 {[%emt 0:01:31]} 35. Rxd5 {[%emt 0:00:38]} Rxd5 {[%emt 0:00:04]} 36. fxg4 {[%emt 0:00:13]} Qg5 {[%emt 0:01:15]} 37. Qb1 {[%emt 0:00:30]} Qxg4 {[%emt 0:01:22]} 38. Nf3 {[%emt 0:00:42]} Qe4 {[%emt 0:00:19]} 39. Qc1 {[%emt 0:01:38]} Ra7 {[%emt 0:00:44]} 40. Kf1 {[%emt 0:01:00]} Re7 {[%emt 0:00:59]} 41. b4 {[%emt 0:31:46]} Be3 {[%emt 0:08:54]} 42. Rc6+ {[%emt 0:00:00]} Kh7 {[%emt 0:02:53]} 43. Qa1 {[%emt 0:00:00]} Red7 {[%emt 0:01:30]} 0-1